[Event "Romanian-ch Youth Open U12 2024"]
[Site "Eforie Nord"]
[Date "2024.04.17"]
[Round "7.1"]
[White "Negrean, Andrei"]
[Black "Vlagiu, Alexandru-Andrei"]
[Result "1-0"]
[ECO "A13"]
[WhiteElo "2250"]
[BlackElo "1629"]
[Annotator "TA"]
[PlyCount "61"]
[EventDate "2024.04.10"]
[EventType "swiss"]
[EventCountry "ROU"]
[SourceTitle "playchess.com"]
[Source "ChessBase"]
[SourceQuality "1"]
[TimeControl "5400+30"]

{[%evp 10,61,5,16,22,14,16,6,20,9,24,10,43,24,61,55,46,58,59,74,118,114,187,179,298,296,442,336,315,312,356,288,295,297,364,302,308,306,345,342,447,442,471,476,687,682,3353,2121,3230,3250,29996,29997,29997,29998]} 1. Nf3 {[%emt 0:00:05]} Nf6 {[%emt 0:00:14]} 2. g3 {[%emt 0:00:23]} e6 {[%emt 0:00:43]} 3. Bg2 {[%emt 0:00:11]} d5 {[%emt 0:00:45][%cal Bd7d5,Bd5d4][%mdl 32]} 4. c4 {[%emt 0:00:15]} d4 {[%emt 0:03:49]} 5. O-O {[%emt 0:00:57]} c5 {[%emt 0:05:12]} 6. e3 {[%emt 0:01:14]} Nc6 {[%emt 0:01:06]} 7. d3 {[%emt 0:00:38]} Be7 {[%emt 0:10:43]} 8. exd4 {[%emt 0:00:35]} cxd4 {[%emt 0:02:50] The position is equal.} 9. Re1 {[%emt 0:01:30]} O-O {[%emt 0:06:17]} 10. Na3 {[%emt 0:01:41][%cal Bb1a3,Ba3c2,Bc2d4][%mdl 32]} Qb6 {[%emt 0:15:11]} 11. Nc2 {[%emt 0:03:29][%cal Ob2b4]} Rd8 {[%emt 0:09:38]} 12. Rb1 {[%emt 0:05:37][%cal Ob2b4]} a5 {[%emt 0:05:06]} 13. b3 {[%emt 0:02:03]} Nb4 {[%emt 0:03:13]} 14. a3 {[%emt 0:08:03]} Na2 {[%emt 0:05:04] White leaves nothing to chance now.} 15. Bd2 {[%emt 0:01:37]} Bd7 {[%emt 0:10:22]} (15... Nc3 $16 16. Bxc3 dxc3) 16. Ncxd4 {[%emt 0:12:36]} Bxa3 {[%emt 0:02:18]} (16... Bc5 $142) 17. b4 $18 {[%emt 0:06:29]} (17. Ra1 e5 18. Rxa2 Bd6 $18) 17... a4 {[%emt 0:08:28]} (17... axb4 $142 18. Qb3 Be8) 18. Ra1 {[%emt 0:04:02]} Bxb4 {[%emt 0:00:52][%cal Ob4c5]} 19. Rxa2 {[%emt 0:00:27] [#] Black must now prevent Rb2.} Bc5 {[%emt 0:00:10][%cal Bb4c5,Bc5d6,Bd6c7][%mdl 32]} 20. Be3 {[%emt 0:00:47]} Ng4 {[%emt 0:00:46]} 21. Qb1 {[%emt 0:01:35]} Qa7 {[%emt 0:01:49]} 22. Nc2 {[%emt 0:01:15]} Nxe3 {[%emt 0:01:04]} 23. fxe3 {[%emt 0:00:47]} ({But not} 23. Nxe3 Be8 24. d4 Bxd4 25. Nxd4 Qxd4 26. Qxb7 (26. Bxb7 Rab8 $18) 26... Rab8) 23... Bc6 {[%emt 0:01:49]} 24. d4 {[%emt 0:01:11]} Bd6 {[%emt 0:00:05]} 25. c5 {[%emt 0:00:55]} Bc7 {[%emt 0:00:08]} 26. Nb4 {[%emt 0:00:30]} Bb5 {[%emt 0:01:03]} (26... Bxf3 $142 27. Bxf3 Rdb8) 27. Ng5 {[%emt 0:00:49]} h6 {[%emt 0:00:54]} 28. Qh7+ {[%emt 0:01:01]} Kf8 {[%emt 0:00:03] [#]} 29. Nxe6+ $1 {[%emt 0:00:37][%mdl 512]} fxe6 {[%emt 0:00:05]} (29... Ke7 30. Nxc7) 30. Rf2+ {[%emt 0:00:05]} Ke8 {[%emt 0:00:04]} 31. Qxg7 {[%emt 0:00:09] Weighted Error Value: White=0.14 (very precise) /Black=0.69.  Mistake:       	---       	Black=4      Inaccurate:     	---       	Black=5      OK:         	White=13    	Black=6} 1-0

[Event "Romanian-ch Youth Open U12 2024"]
[Site "Eforie Nord"]
[Date "2024.04.17"]
[Round "7.2"]
[White "Voinescu, Marian-David"]
[Black "Petroff, Vlad"]
[Result "0-1"]
[ECO "B15"]
[WhiteElo "1756"]
[BlackElo "1999"]
[Annotator "TA"]
[PlyCount "96"]
[EventDate "2024.04.10"]
[EventType "swiss"]
[EventCountry "ROU"]
[SourceTitle "playchess.com"]
[Source "ChessBase"]
[SourceQuality "1"]
[TimeControl "5400+30"]

{[%evp 13,95,16,27,18,27,9,4,0,8,0,0,0,30,1,1,12,29,12,23,9,38,6,66,22,68,69,79,20,28,-26,13,21,47,20,49,43,29,0,0,0,0,-156,-165,-135,-77,-69,-93,-93,-75,-356,-342,-472,-247,-234,-140,-747,-212,-238,-195,-662,-513,-541,-427,-941,-150,-161,0,-1030,-1004,-29987,-29988,-29988,-29989,-29990,-29991,-29995,-29996,-29996,-29997,-29997,-29998,-29998,-29999,-29999]} 1. e4 {[%emt 0:10:45]} c6 {[%emt 0:00:04]} 2. d4 {[%emt 0:00:02]} d5 {[%emt 0:00:04]} 3. Nd2 {[%emt 0:00:02]} dxe4 {[%emt 1:31:52]} 4. Nxe4 {[%emt 0:00:02]} Nf6 {[%emt 0:00:00]} 5. Nxf6+ {[%emt 0:00:02]} exf6 {[%emt 0:00:00]} 6. Bc4 {[%emt 0:00:03]} Bd6 {[%emt 0:00:00]} 7. Qe2+ {[%emt 0:00:04]} Be7 {[%emt 0:00:00]} 8. Nf3 {[%emt 0:00:24]} O-O {[%emt 0:00:00]} 9. Be3 {[%emt 0:04:25]} Nd7 {[%emt 0:00:00]} 10. O-O {[%emt 0:00:48] The position is equal.} Nb6 {[%emt 0:00:00]} 11. Bd3 {[%emt 0:00:32]} Nd5 {[%emt 0:00:00]} 12. Bd2 {[%emt 0:01:32]} Be6 {[%emt 0:00:00]} 13. a3 {[%emt 0:02:14][%cal Ba2a3,Ba3a4,Ba4a5][%mdl 32]} Re8 {[%emt 0:00:00]} 14. c4 {[%emt 0:01:25]} Nb6 {[%emt 0:00:00][%cal Bd5b6,Bb6d7,Bd7f8,Bf8g6,Bg6h4][%mdl 32]} 15. Be3 {[%emt 0:07:47]} Qd7 {[%emt 0:00:00]} 16. Qc2 {[%emt 0:02:01]} h6 {[%emt 0:00:00]} 17. Rfd1 {[%emt 0:02:45]} Rac8 {[%emt 0:00:00]} (17... Bg4 $11) 18. a4 {[%emt 0:03:27]} Qc7 {[%emt 0:00:00]} (18... Na8 $11) 19. a5 $14 {[%emt 0:01:36]} Nd7 {[%emt 0:00:00]} 20. Qb3 {[%emt 0:08:09]} (20. c5 $16) 20... Bg4 {[%emt 0:00:00]} 21. Be2 {[%emt 0:07:57]} (21. c5 $142) 21... Nf8 {[%emt 0:00:00]} 22. h3 {[%emt 0:01:16]} Bd7 {[%emt 0:00:00]} 23. d5 {[%emt 0:02:40]} c5 {[%emt 0:00:00]} 24. Qd3 {[%emt 0:06:16] [#] Hoping for d6.} Bd6 {[%emt 0:00:00]} 25. Nd2 {[%emt 0:02:13]} Ng6 {[%emt 0:00:00]} 26. Qc2 {[%emt 0:03:50]} Nh4 {[%emt 0:00:00][%cal Od7h3]} 27. Bd3 $2 {[%emt 0:03:42]} (27. Nf3 $11 Bf5 28. Qb3 Nxf3+ 29. Bxf3) 27... f5 $17 {[%emt 0:00:00] White must now prevent ...f4. Black is more active.} 28. b4 {[%emt 0:04:59] [#]} b6 {[%emt 0:00:00]} ({Not} 28... cxb4 29. Bxa7 Qd8 30. Bf1 $11) ({Much less strong is} 28... Rxe3 29. fxe3 cxb4 30. Nb3 $15) ({Black should try} 28... Be5 $1 {And now ...f4 would win.} 29. Nb3 cxb4 (29... Bxa1 30. Rxa1 cxb4 31. Qd2 $19) 30. Bxa7 Bxa1 31. Rxa1 (31. Bb6 $2 Qf4 $19) 31... f4) 29. axb6 {[%emt 0:00:34]} axb6 {[%emt 0:00:00]} 30. bxc5 {[%emt 0:00:04]} bxc5 {[%emt 0:00:00]} 31. Nb3 $2 {[%emt 0:01:00][%mdl 8192]} (31. Nf1 $17) 31... f4 $19 {[%emt 0:00:00]} 32. Bd2 {[%emt 0:01:29]} f3 {[%emt 0:00:00]} (32... Qd8 $142 33. Kh1 Nxg2) 33. g4 {[%emt 0:07:11]} Qd8 {[%emt 0:00:00]} ({Black should play} 33... Rb8 $19 {[%cal Of7f5] ...f5! would now be deadly.} 34. Kh1 Qc8) 34. Na5 $2 {[%emt 0:04:17][%mdl 8192]} (34. Ra6 $17 Bb8 35. Kh1) 34... Qf6 $2 {[%emt 0:00:00]} (34... Ng6 {Threatens to win with ...Qh4.} 35. g5 Nf4 (35... Bxh3 $2 36. Bf5 $19) (35... hxg5 36. Nb7 $15)) 35. Nb7 {[%emt 0:06:31]} Be5 {[%emt 0:00:00]} 36. Rac1 {[%emt 0:00:58]} (36. Ra3) 36... Rc7 {[%emt 0:01:25]} 37. Na5 {[%emt 0:00:11]} Ra7 {[%emt 0:01:19]} 38. Nb3 {[%emt 0:01:14]} (38. Re1 $142 Ng2 39. Rxe5 Qxe5 (39... Rxe5 $2 40. Qd1 $19) 40. Bf1) 38... Bd6 $2 {[%emt 0:00:34]} (38... Bc7 $19 {and Black stays clearly on top. aiming for ...Qe5.} 39. Ba5 Bd6 (39... Bxa5 $2 40. Nxa5 Rxa5 41. Qc3 $19) (39... Rxa5 $2 40. d6 $19)) 39. Qc3 $17 {[%emt 0:00:54]} Be5 {[%emt 0:01:00]} (39... Qd8 40. Re1 h5 41. Rxe8+ Qxe8) 40. Qc2 $19 {[%emt 0:00:03]} Bc7 {[%emt 0:02:51] ( -> ...Qd6)} 41. Re1 {[%emt 0:04:42]} Rxe1+ {[%emt 0:11:51] Black mates.} 42. Rxe1 {[%emt 0:00:08]} Qd6 {[%emt 0:00:00]} 43. Re8+ {[%emt 0:01:09]} Bxe8 {[%emt 0:00:00]} 44. Kf1 {[%emt 0:00:01]} Qh2 {[%emt 0:00:00][%cal Rh2h1]} 45. Ke1 {[%emt 0:00:00]} Qg1+ {[%emt 0:00:00]} 46. Bf1 {[%emt 0:00:01]} Ng2+ {[%emt 0:00:00]} 47. Kd1 {[%emt 0:00:01]} Qxf1+ {[%emt 0:00:00]} 48. Be1 {[%emt 0:00:01]} Qxe1# {[%emt 0:03:30] Weighted Error Value: White=0.80/Black=0.62.  Loses game:     	White=2     	---        Missed win:     	---       	Black=1      Mistake:       	White=5     	Black=6      Inaccurate:     	White=7     	Black=5      OK:         	White=4     	Black=6      Best:        	White=5     	Black=2} 0-1

[Event "Romanian-ch Youth Open U12 2024"]
[Site "Eforie Nord"]
[Date "2024.04.18"]
[Round "8.1"]
[White "Petroff, Vlad"]
[Black "Negrean, Andrei"]
[Result "0-1"]
[ECO "D60"]
[WhiteElo "1999"]
[BlackElo "2250"]
[Annotator "TA"]
[PlyCount "108"]
[EventDate "2024.04.10"]
[EventType "swiss"]
[EventCountry "ROU"]
[SourceTitle "playchess.com"]
[Source "ChessBase"]
[SourceQuality "1"]
[TimeControl "5400+30"]

{[%evp 23,107,-3,1,0,0,-26,0,0,0,-10,-7,-9,-27,-16,-9,-13,0,-24,0,-31,-11,-18,-17,-30,-16,-50,-45,-77,-13,-186,-117,-113,-124,-122,-116,-127,-128,-176,-133,-356,-360,-472,-435,-436,-450,-410,-470,-460,-466,-429,-418,-1018,-991,-29988,-29989,-29989,-29981,-29992,-29982,-29982,-29983,-29983,-29981,-29985,-29986,-29986,-29987,-29987,-29988,-29988,-29989,-29990,-29991,-29991,-29992,-29992,-29993,-29995,-29996,-29996,-29997,-29997,-29998,-29998,-29999,-29999]} 1. d4 {[%emt 0:00:05]} e6 {[%emt 0:00:07]} 2. c4 {[%emt 0:00:28]} Nf6 {[%emt 0:00:13]} 3. Nf3 {[%emt 0:00:05]} d5 {[%emt 0:00:19]} 4. Nc3 {[%emt 0:00:24]} c6 {[%emt 0:00:21]} 5. Bg5 {[%emt 0:02:59]} h6 {[%emt 0:01:50]} 6. Bh4 {[%emt 0:01:36]} Nbd7 {[%emt 0:01:55]} 7. e3 {[%emt 0:01:22]} Be7 {[%emt 0:01:40]} 8. Bd3 {[%emt 0:01:00]} O-O {[%emt 0:02:31]} 9. O-O {[%emt 0:00:25]} dxc4 {[%emt 0:12:31]} 10. Bxc4 {[%emt 0:00:28]} b5 {[%emt 0:00:32]} 11. Bd3 {[%emt 0:03:48]} a6 {[%emt 0:01:12]} 12. Qc2 {[%emt 0:09:33]} c5 {[%emt 0:10:31]} 13. dxc5 {[%emt 0:07:18]} Nxc5 {[%emt 0:02:14]} 14. Be2 {[%emt 0:01:09]} Qb6 {[%emt 0:07:39]} 15. b4 {[%emt 0:11:06][%cal Oh4f6] Bxf6! is the strong threat. The position is equal.} Ncd7 {[%emt 0:01:50]} 16. a3 {[%emt 0:01:00]} Bb7 {[%emt 0:01:53]} 17. Rfd1 {[%emt 0:03:27] And now Rxd7 would win.} Rfd8 {[%emt 0:04:32]} 18. Rac1 {[%emt 0:03:24]} Rac8 {[%emt 0:07:12]} 19. Qb2 {[%emt 0:03:41]} Qa7 {[%emt 0:02:09]} 20. h3 {[%emt 0:04:17]} Qa8 {[%emt 0:05:18]} 21. Rc2 {[%emt 0:13:20]} Nb6 {[%emt 0:03:38]} 22. Rxd8+ {[%emt 0:01:26]} Rxd8 {[%emt 0:02:02]} 23. Rd2 {[%emt 0:00:41]} Rc8 {[%emt 0:02:28] aiming for ...Nc4.} 24. Rd1 {[%emt 0:03:16]} Nc4 {[%emt 0:01:08]} 25. Qb3 {[%emt 0:00:10]} Nd5 {[%emt 0:09:10]} (25... Nd6 $17 26. Bg3 Nc4) 26. Bg3 $2 {[%emt 0:06:44] [#]} (26. Bxe7 $11 {and White is okay.} Nxe7 27. a4) 26... Ncxe3 {[%emt 0:04:29]} 27. Nxd5 $17 {[%emt 0:00:37]} Nxd5 {[%emt 0:00:09]} 28. Be5 {[%emt 0:01:37] Prevents Nc3} Bf6 {[%emt 0:00:33] White must now prevent ...Nc3.} 29. Bxf6 {[%emt 0:00:45]} Nxf6 {[%emt 0:00:03]} 30. Ra1 {[%emt 0:03:13]} (30. Ne1 $17 {was worth a try.}) 30... Nd5 {[%emt 0:02:00] Strongly threatening ...Rc3.} 31. a4 $2 {[%emt 0:01:06]} (31. Bf1 $17) 31... Nc3 $19 {[%emt 0:01:18]} 32. Bd1 {[%emt 0:02:49]} bxa4 {[%emt 0:01:04]} 33. Qa3 {[%emt 0:00:14]} Nxd1 {[%emt 0:03:25]} 34. Rxd1 {[%emt 0:00:05]} Bxf3 {[%emt 0:00:05]} 35. gxf3 {[%emt 0:00:06][%mdl 4096] Endgame. KQR-KQR} Qc6 {[%emt 0:00:09]} 36. Ra1 {[%emt 0:00:13]} Qb5 {[%emt 0:00:49]} 37. Qxa4 {[%emt 0:00:59] [#]} (37. f4 $142) 37... Rc1+ $3 {[%emt 0:00:08][%mdl 512]} 38. Kh2 {[%emt 0:00:23]} (38. Rxc1 Qxa4) 38... Qe5+ {[%emt 0:00:09] Black mates.} 39. f4 {[%emt 0:00:15]} Qxa1 {[%emt 0:00:25]} (39... Rxa1 $2 {too greedy.} 40. Qe8+ Kh7 41. fxe5 $18) 40. Qe8+ {[%emt 0:00:06]} Kh7 {[%emt 0:00:01]} 41. Qa8 {[%emt 0:00:33]} Qd4 {[%emt 0:00:11]} 42. Qf3 {[%emt 0:00:13]} Rc4 {[%emt 0:00:15]} 43. Qe2 {[%emt 0:00:18]} Qxf4+ {[%emt 0:00:06]} 44. Kg2 {[%emt 0:00:04]} Qe4+ {[%emt 0:00:12]} 45. Qf3 {[%emt 0:00:05]} Qxf3+ {[%emt 0:00:06]} 46. Kxf3 {[%emt 0:00:02]} Rxb4 {[%emt 0:00:05] KR-KPP} 47. Kg3 {[%emt 0:00:06]} a5 {[%emt 0:00:02]} 48. h4 {[%emt 0:00:06]} a4 {[%emt 0:00:04]} 49. h5 {[%emt 0:00:02]} a3 {[%emt 0:00:09]} 50. f4 {[%emt 0:00:04]} a2 {[%emt 0:00:02]} 51. f5 {[%emt 0:00:04]} a1=Q {[%emt 0:00:05]} 52. fxe6 {[%emt 0:00:08]} Qc3+ {[%emt 0:00:02]} 53. Kf2 {[%emt 0:00:06]} Rb2+ {[%emt 0:00:02]} 54. Kf1 {[%emt 0:00:05]} Qc1# {[%emt 0:00:05] Weighted Error Value: White=0.43/Black=0.12 (very precise) .  Loses game:     	White=2     	---        Mistake:       	White=2     	Black=2      Inaccurate:     	White=6     	Black=1      OK:         	White=7     	Black=7      Best:        	White=1     	---        Brilliant:      	---       	Black=1} 0-1

[Event "Romanian-ch Youth Open U12 2024"]
[Site "Eforie Nord"]
[Date "2024.04.18"]
[Round "8.2"]
[White "Stanica, Andrei"]
[Black "Ponta-Facalet, Zeno-Andrei"]
[Result "1-0"]
[ECO "B13"]
[WhiteElo "1977"]
[BlackElo "1783"]
[Annotator "TA"]
[PlyCount "67"]
[EventDate "2024.04.10"]
[EventType "swiss"]
[EventCountry "ROU"]
[SourceTitle "playchess.com"]
[Source "ChessBase"]
[SourceQuality "1"]
[TimeControl "5400+30"]

{[%evp 14,66,18,15,8,11,40,35,65,60,58,49,59,64,88,83,105,79,100,96,99,98,85,76,102,90,142,106,401,410,389,343,475,465,467,353,717,591,408,244,1312,1280,2049,1301,29986,29987,29987,29988,29994,29995,29997,29977,29998,29999,29999]} 1. e4 {[%emt 0:00:03]} c6 {[%emt 0:00:13]} 2. d4 {[%emt 0:00:03]} d5 {[%emt 0:00:04]} 3. exd5 {[%emt 0:00:03]} cxd5 {[%emt 0:00:05]} 4. Bd3 {[%emt 0:00:06]} Nc6 {[%emt 0:01:31][%cal Bb8c6,Bc6e7,Be7g6][%mdl 32]} 5. c3 {[%emt 0:00:05]} Nf6 {[%emt 0:01:29]} 6. h3 {[%emt 0:00:13]} e6 {[%emt 0:08:15]} 7. Nf3 {[%emt 0:00:11]} Bd6 {[%emt 0:00:28]} 8. O-O {[%emt 0:00:08]} O-O {[%emt 0:02:14]} 9. Re1 {[%emt 0:00:12]} Ne7 {[%emt 0:18:25]} 10. Ne5 {[%emt 0:01:52]} Ng6 {[%emt 0:00:37] White is slightly better.} 11. Nd2 {[%emt 0:08:42]} Qc7 {[%emt 0:08:33]} 12. Ndf3 {[%emt 0:00:18]} Nd7 {[%emt 0:02:58]} 13. Qe2 {[%emt 0:08:51]} Ndxe5 {[%emt 0:09:52]} 14. dxe5 {[%emt 0:00:26]} Be7 {[%emt 0:00:28]} 15. g3 {[%emt 0:02:11]} Re8 {[%emt 0:08:41]} 16. h4 {[%emt 0:00:14]} Nf8 {[%emt 0:00:13]} 17. Bf4 {[%emt 0:04:56]} Bd7 {[%emt 0:02:25]} 18. h5 {[%emt 0:03:14]} Rac8 {[%emt 0:15:35]} 19. Nd4 {[%emt 0:02:36]} a6 {[%emt 0:01:27]} ({Better is} 19... h6) 20. Qg4 $16 {[%emt 0:00:53] Black must now prevent Bh6. White is much more active.} Qd8 $2 {[%emt 0:03:02][%mdl 8192]} (20... Kh8 $16) 21. Bh6 $18 {[%emt 0:02:06][%csl Gh6][%cal Rg4g7]} g6 {[%emt 0:01:04]} 22. Kg2 {[%emt 0:02:02] Strongly threatening hxg6.} Rc7 {[%emt 0:10:47]} 23. Rh1 {[%emt 0:01:02]} Bc8 {[%emt 0:00:28]} 24. f4 {[%emt 0:02:48] Threatens to win with hxg6.} b5 $2 {[%emt 0:00:34]} (24... Bc5 25. Rae1 Bxd4) 25. a3 {[%emt 0:01:58]} Bc5 {[%emt 0:01:13]} 26. Rh2 $40 {[%emt 0:02:19][%mdl 128] White is out for blood.} (26. Bg5 $142 Be7 27. Bh6) 26... Be7 {[%emt 0:01:51]} (26... f5 27. Qe2 Rf7) 27. Rah1 {[%emt 0:00:34]} Qd7 {[%emt 0:00:38]} 28. Bxf8 {[%emt 0:00:56][%cal Rh5g6] Threatening mate with hxg6!} Bxf8 {[%emt 0:00:33]} 29. hxg6 {[%emt 0:00:09] White mates.} fxg6 {[%emt 0:00:28] [#]} 30. Bxg6 $1 {[%emt 0:00:23][%mdl 512]} Qg7 {[%emt 0:00:36]} (30... Kh8 31. Bxh7) 31. Rxh7 {[%emt 0:00:30]} Ree7 {[%emt 0:00:17] [#]} 32. Rh8+ $1 {[%emt 0:00:49]} Qxh8 {[%emt 0:00:14]} 33. Bh7+ {[%emt 0:00:00]} Kf7 {[%emt 0:01:42]} 34. Qg6# {White took control after the opening.   Weighted Error Value: White=0.34/Black=0.59.  Loses game:     	---       	Black=1      Mistake:       	---       	Black=3      Inaccurate:     	---       	Black=5      OK:         	White=4     	Black=3      Best:        	White=1     	---} 1-0

[Event "Romanian-ch Youth Open U12 2024"]
[Site "Eforie Nord"]
[Date "2024.04.19"]
[Round "9.1"]
[White "Parvu, Razvan-George"]
[Black "Negrean, Andrei"]
[Result "0-1"]
[ECO "D38"]
[WhiteElo "1797"]
[BlackElo "2250"]
[Annotator "TA"]
[PlyCount "120"]
[EventDate "2024.04.10"]
[EventType "swiss"]
[EventCountry "ROU"]
[SourceTitle "playchess.com"]
[Source "ChessBase"]
[SourceQuality "1"]
[TimeControl "5400+30"]

{[%evp 14,120,46,17,28,16,22,27,31,27,33,29,33,31,40,20,10,0,16,0,0,0,0,0,0,0,0,0,0,0,340,338,583,579,642,639,674,385,837,820,6611,-137,-141,-253,-237,-247,-245,-257,-245,-247,-259,-259,-250,-251,-252,-237,-118,-104,-103,-198,-185,-243,-178,-440,-439,-547,-395,-374,-377,-660,-551,-621,-622,-658,-659,-656,-629,-641,-625,-675,-658,-655,-642,-646,-621,-642,-635,-625,-585,-830,-812,-856,-819,-864,-836,-989,-934,-858,-691,-984,-974,-869,-843,-4922,-4918,-29973,-29974,-29975,-29976]} 1. d4 {[%emt 0:00:10]} Nf6 {[%emt 0:00:08]} 2. c4 {[%emt 0:00:13]} e6 {[%emt 0:00:12]} 3. Nf3 {[%emt 0:00:13]} d5 {[%emt 0:00:14]} 4. Nc3 {[%emt 0:00:08]} Nbd7 {[%emt 0:00:17]} 5. Bg5 {[%emt 0:02:44]} Bb4 {[%emt 0:00:41]} 6. e3 {[%emt 0:00:52]} c5 {[%emt 0:00:44]} 7. cxd5 {[%emt 0:06:01]} exd5 {[%emt 0:00:28]} 8. Qa4 {[%emt 0:13:26]} O-O {[%emt 0:03:24]} 9. Bd3 {[%emt 0:01:53]} Bxc3+ {[%emt 0:06:20]} 10. bxc3 {[%emt 0:00:18]} c4 {[%emt 0:00:40] White has an edge.} 11. Bc2 {[%emt 0:00:56]} h6 {[%emt 0:06:03]} 12. Bh4 {[%emt 0:01:33]} Qe7 {[%emt 0:04:52]} 13. Rb1 {[%emt 0:02:50]} Qe6 {[%emt 0:14:03]} 14. O-O {[%emt 0:02:22]} Ne4 {[%emt 0:02:33]} 15. Qa3 {[%emt 0:04:58]} f5 {[%emt 0:07:27]} 16. Bxe4 {[%emt 0:06:05]} dxe4 {[%emt 0:13:07]} 17. Nd2 {[%emt 0:00:46]} g5 {[%emt 0:01:57]} 18. Bg3 {[%emt 0:00:20]} f4 {[%emt 0:02:20]} 19. exf4 {[%emt 0:03:15]} gxf4 {[%emt 0:00:04]} 20. Bh4 {[%emt 0:00:37]} Qg4 {[%emt 0:04:50]} 21. g3 {[%emt 0:03:36][%cal Oa3d6]} Qe2 $2 {[%emt 0:07:37][%mdl 8192] [#]} (21... e3 $1 $11 22. f3 (22. fxe3 fxe3 23. Nxc4 e2 $11) 22... Qe6) 22. Qd6 $1 $18 {[%emt 0:15:05][%csl LRf4,LRh6]} Kg7 {[%emt 0:03:29] Inhibits Qg6+.} (22... Qh5 {might work better.} 23. Nxe4 (23. Nxc4 Nb6 $16) 23... Kg7) (22... Qg4 23. Nxe4) 23. Rbe1 {[%emt 0:18:56]} Qxd2 {[%emt 0:00:15]} 24. Rxe4 {[%emt 0:00:26]} Rf7 {[%emt 0:08:03]} 25. Rfe1 {[%emt 0:05:38]} Nf8 $2 {[%emt 0:02:51]} (25... fxg3 26. Rg4+) (25... Nf6 26. Bxf6+ (26. Qxf4 $2 Nxe4 27. Qxd2 Nxd2 $19) 26... Rxf6) 26. Re7 {[%emt 0:01:50]} Be6 {[%emt 0:00:08]} 27. Rxf7+ $2 {[%emt 0:00:39]} (27. R7xe6 Nxe6 28. Qe5+ Kh7 (28... Kg8 29. Qxe6 fxg3 30. Bxg3 $11) 29. Qe4+ Kg7 30. Qe5+ Kh7 (30... Kg8 31. Qxe6 Kg7 32. d5 $11) 31. Qe4+ Kg7 32. Qe5+ $11) (27. R1xe6 $18 {[%cal Oe6g6] White threatens Rg6+! and mate.} Qd1+ 28. Re1) 27... Bxf7 $17 {[%emt 0:01:06]} 28. Qf6+ {[%emt 0:02:02]} (28. Re7 $17 Qd1+ (28... Qxc3 29. Qf6+ Kh7 30. Rxf7+ Kg8 31. Qg7#) 29. Kg2) 28... Kg8 $19 {[%emt 0:00:15]} 29. Re7 {[%emt 0:00:50]} Qd1+ {[%emt 0:00:47]} 30. Kg2 {[%emt 0:00:08] [#]} f3+ $1 {[%emt 0:00:24]} 31. Kh3 {[%emt 0:00:47]} Qf1+ {[%emt 0:00:23]} 32. Kg4 {[%emt 0:00:31]} h5+ {[%emt 0:00:32]} 33. Kxf3 {[%emt 0:02:10]} Bd5+ {[%emt 0:00:06]} 34. Kf4 {[%emt 0:01:05][%csl Ge7][%cal Rf6g7] [#]} Qxf2+ {[%emt 0:01:02]} (34... Ne6+ $1 $19 {is more deadly.} 35. Ke5 (35. Rxe6 $2 Rf8 $19) 35... Qe2+ 36. Kd6 Rd8+ 37. Rd7 Rxd7+ 38. Kxd7 Ng7 (38... Qxa2 39. Qg6+ Ng7 40. Bf6 $14)) 35. Ke5 $17 {[%emt 0:00:54][%csl Ge7][%cal Rf6g7]} Qxf6+ {[%emt 0:00:53]} ({Stronger than} 35... Qxa2 36. Qg7#) 36. Kxf6 {[%emt 0:00:10]} (36. Bxf6 $17 Bf7 37. Rxb7) 36... Rc8 {[%emt 0:01:39]} 37. Kg5 {[%emt 0:00:51]} (37. Rg7+ $142 Kh8 38. Re7) 37... b5 {[%emt 0:00:51][%cal Ob5b4] aiming for ...b4!} 38. Kxh5 $2 {[%emt 0:01:07] [#]} (38. a3 {keeps fighting.}) 38... b4 $1 $19 {[%emt 0:00:08]} 39. Bf6 {[%emt 0:00:23] Hoping for Rg7+.} (39. cxb4 Ne6) 39... Bf7+ {[%emt 0:00:04]} (39... bxc3 $2 {perishes.} 40. Rg7+ (40. Rxa7 $2 Ne6 $19) 40... Kh8 41. Rxa7+ (41. Rc7+ Kg8 $11) 41... Kg8 42. Rg7+ Kh8 43. Rc7+ Kg8 44. Rxc8 $18) 40. Kg4 {[%emt 0:00:38]} b3 {[%emt 0:00:33]} 41. Rb7 $2 {[%emt 0:00:36]} (41. Re2) 41... Rc6 {[%emt 0:00:20]} (41... bxa2 $2 42. Rxa7 Be6+ 43. Kh5 $19) 42. Bd8 {[%emt 0:00:13] Repels Rb6} Be6+ {[%emt 0:02:07]} 43. Kf4 {[%emt 0:00:25]} Bc8 {[%emt 0:00:08]} 44. Rb4 {[%emt 0:01:23]} bxa2 {[%emt 0:01:21]} 45. Ra4 {[%emt 0:00:11]} Ne6+ {[%emt 0:00:10]} 46. Ke5 {[%emt 0:00:19]} Nxd8 {[%emt 0:00:09]} 47. Rxa2 {[%emt 0:00:10]} Ra6 {[%emt 0:01:06]} 48. Rb2 {[%emt 0:00:04]} Ra3 {[%emt 0:01:37]} 49. d5 {[%emt 0:00:22]} Rb3 {[%emt 0:00:31]} 50. Rc2 {[%emt 0:00:10]} a5 {[%emt 0:01:02]} 51. Kd6 {[%emt 0:00:06]} Bf5 {[%emt 0:02:21]} 52. Rf2 {[%emt 0:00:21]} Nf7+ {[%emt 0:00:39]} 53. Kc5 {[%emt 0:00:16]} Bd3 {[%emt 0:00:42]} 54. Ra2 {[%emt 0:00:24]} Rxc3 {[%emt 0:00:38]} 55. Rxa5 {[%emt 0:00:08]} Rb3 {[%emt 0:01:06] Strongly threatening ...c3.} 56. Kd4 {[%emt 0:00:12]} Rb8 {[%emt 0:00:32]} 57. Ra6 {[%emt 0:00:38]} Rc8 {[%emt 0:00:33] And now ...c3 would win.} 58. d6 {[%emt 0:00:20] [#]} Nxd6 $1 {[%emt 0:00:21]} 59. Rxd6 {[%emt 0:00:11] [#]} (59. Ra5 Bg6) 59... c3 $1 {[%emt 0:00:03]} 60. Kxd3 {[%emt 0:00:36]} (60. Re6 c2) 60... c2 {[%emt 0:00:01] Never resign too early!   Weighted Error Value: White=0.51/Black=0.45.  Loses game:     	---       	Black=1      Mistake:       	White=4     	Black=2      Inaccurate:     	---       	Black=1      OK:         	White=10    	Black=10     Best:        	White=5     	Black=4      Strong:       	White=1     	---} 0-1